fUSD/lending_fUSD_20260420
["ID","MTS","AMOUNT","RATE_DAILY","PERIOD"]
[420854626,1776641443695,-150.0,9.973e-05,2]
[420854628,1776641443705,-207.0,9.989e-05,2]
[420854631,1776641443714,-207.0,9.989e-05,2]
[420854634,1776641443724,-207.0,9.989e-05,2]
[420854636,1776641443734,-207.0,9.989e-05,2]
[420854638,1776641443744,-200.0,0.0001,2]
[420854640,1776641443754,-500.0,0.0001,2]
[420854642,1776641443763,-151.0,0.0001,2]
[420854644,1776641443773,-500.0,0.0001,2]
[420854646,1776641443782,-151.0,0.0001,2]
[420854648,1776641443792,-500.0,0.0001,2]
[420854649,1776641443802,-151.0,0.0001,2]
[420854650,1776641443813,-500.0,0.0001,2]
[420854651,1776641443822,-151.0,0.0001,2]
[420854652,1776641443832,-500.0,0.0001,2]
[420854654,1776641443847,-151.0,0.0001,2]
[420854656,1776641443862,-500.0,0.0001,2]
[420854658,1776641443871,-151.0,0.0001,2]
[420854671,1776641444673,-500.0,0.0001,2]
[420854672,1776641444683,-151.0,0.0001,2]
[420854673,1776641444692,-500.0,0.0001,2]
[420854674,1776641444701,-151.0,0.0001,2]
[420854675,1776641444711,-500.0,0.0001,2]
[420854676,1776641444720,-151.0,0.0001,2]
[420854677,1776641444730,-500.0,0.0001,2]
[420854678,1776641444739,-151.0,0.0001,2]
[420854679,1776641444748,-500.0,0.0001,2]
[420854680,1776641444757,-151.0,0.0001,2]
[420854681,1776641444767,-500.0,0.0001,2]
[420854682,1776641444776,-151.0,0.0001,2]
[420854683,1776641444785,-500.0,0.0001,2]
[420854684,1776641444795,-151.0,0.0001,2]
[420854685,1776641444804,-151.0,0.0001,2]
[420854686,1776641444815,-500.0,0.0001,2]
[420854687,1776641444825,-500.0,0.0001,2]
[420854688,1776641444835,-500.0,0.0001,2]
[420854689,1776641444847,-500.0,0.0001,2]
[420854690,1776641444858,-500.0,0.0001,2]
[420854691,1776641444868,-500.0,0.0001,2]
[420854692,1776641444877,-500.0,0.0001,2]
[420854693,1776641444886,-500.0,0.0001,2]
[420854694,1776641444894,-13158.41432066,0.00010016,2]
[420854725,1776641448194,-500.0,9.043e-05,2]
[420854726,1776641448203,-438.61517698,9.043e-05,2]
[420854727,1776641448218,-61.38482302,9.043e-05,2]
[420854728,1776641448227,-500.0,9.043e-05,2]
[420854729,1776641448236,-96.54447675,9.043e-05,2]
[420854730,1776641448274,-403.45552325,9.043e-05,2]
[420854731,1776641448288,-500.0,9.043e-05,2]
[420854732,1776641448297,-500.0,9.043e-05,2]
[420854733,1776641448307,-500.0,9.043e-05,2]
[420854734,1776641448317,-500.0,9.043e-05,2]
[420854735,1776641448326,-500.0,9.043e-05,2]
[420854736,1776641448336,-500.0,9.043e-05,2]
[420854737,1776641448345,-215.92130159,9.043e-05,2]
[420854738,1776641448355,-500.0,9.043e-05,2]
[420854739,1776641448365,-500.0,9.043e-05,2]
[420854740,1776641448374,-500.0,9.043e-05,2]
[420854741,1776641448384,-500.0,9.043e-05,2]
[420854742,1776641448393,-500.0,9.043e-05,2]
[420854743,1776641448402,-500.0,9.043e-05,2]
[420854744,1776641448412,-8872.2019557,0.00010016,2]
[420854745,1776641448437,-391.32725833,0.00010016,2]
[420854746,1776641448449,-874.04884267,0.00010016,2]
[420854747,1776642145674,3905.791259,8.897e-05,2]
[420854748,1776642203332,169.93,6.724e-05,2]
[420854749,1776642203525,169.93,7.845e-05,2]
[420854750,1776642419548,184.5,8.645e-05,2]
[420854751,1776642419605,262.0,8.645e-05,2]
[420854752,1776642419643,1500.0,8.405e-05,2]
[420854753,1776642438091,3807.858741,8.893e-05,2]
[420854754,1776642438113,2069.48,8.893e-05,2]
[420854755,1776642511276,500.0,8.868e-05,2]
[420854756,1776642537101,-2000.0,8.938e-05,2]
[420854757,1776642542599,-445.0018,8.942e-05,2]
[420854758,1776642558465,-441.41895824,8.942e-05,2]
[420854759,1776642614939,200.0,8.929e-05,2]
[420854774,1776642633408,-169.93,8.965e-05,2]
[420854775,1776642633418,-150.0,9.187e-05,2]
[420854776,1776642633427,-108.4569834,9.226e-05,2]
[420854777,1776642633439,-324.6330166,9.226e-05,2]
[420854778,1776642633448,-368.98,9.242e-05,2]
[420854779,1776642633460,-131.02,9.242e-05,2]
[420854780,1776642633469,-227.1,9.319e-05,3]
[420854781,1776642633478,-300.0,9.369e-05,2]
[420854782,1776642633487,-300.0,9.369e-05,2]
[420854783,1776642633497,-1200.0,9.369e-05,2]
[420854784,1776642633507,-165.67,9.37e-05,2]
[420854785,1776642633516,-5398.09054138,9.37e-05,2]
[420854786,1776642633528,-356.44950306,9.37e-05,2]
[420854787,1776642633555,-720.22605909,9.37e-05,2]
[420854788,1776642633566,-2113.45389647,9.37e-05,2]
[420854789,1776642633575,-10120.45,9.459e-05,2]
[420854790,1776642633584,-150.0,9.518e-05,2]
[420854791,1776642633593,-150.0,9.518e-05,2]
[420854792,1776642633603,-150.0,9.518e-05,2]
[420854793,1776642633612,-150.0,9.518e-05,2]
[420854794,1776642633624,-150.0,9.518e-05,2]
[420854795,1776642633633,-150.0,9.518e-05,2]
[420854796,1776642633643,-150.0,9.518e-05,2]
[420854797,1776642633654,-152.0,9.663e-05,7]
[420854798,1776642633663,-152.0,9.663e-05,7]
[420854799,1776642633672,-150.0,9.729e-05,2]
[420854800,1776642633681,-150.0,9.782e-05,2]
[420854801,1776642633690,-150.0,9.814e-05,2]
[420854802,1776642633699,-670.58624095,9.815e-05,2]
[420854803,1776642633708,-1377.42282659,9.815e-05,2]
[420854804,1776642633718,-1000.0,9.815e-05,2]
[420854805,1776642633727,-1000.0,9.815e-05,2]
[420854806,1776642633737,-1000.0,9.815e-05,2]
[420854807,1776642633746,-1000.0,9.815e-05,2]
[420854808,1776642633756,-784.8323154,9.815e-05,2]
[420854809,1776642633766,-91654.30122545,9.82e-05,2]
[420854810,1776642633779,-68360.73524715,9.82e-05,2]
[420854811,1776642633789,-152.0,9.822e-05,7]
[420854812,1776642633799,-152.0,9.822e-05,7]
[420854813,1776642633808,-193.0,9.832e-05,2]
[420854814,1776642633818,-250.0,9.836e-05,2]
[420854815,1776642633830,-250.0,9.845e-05,2]
[420854816,1776642634365,-150.0,9.87e-05,2]
[420854817,1776642634384,-150.0,9.87e-05,2]
[420854818,1776642634394,-150.0,9.87e-05,2]
[420854819,1776642634406,-1000.0,9.916e-05,2]
[420854820,1776642634427,-150.0,9.941e-05,2]
[420854821,1776642634437,-174.61919141,9.973e-05,2]
[420854822,1776642634447,-500.0,0.0001,2]
[420854823,1776642634457,-151.0,0.0001,2]
[420854824,1776642634467,-500.0,0.0001,2]
[420854825,1776642634477,-500.0,0.0001,2]
[420854826,1776642634488,-200.0,0.0001,2]
[420854827,1776642634498,-151.0,0.0001,2]
[420854828,1776642634509,-2430.25864017,0.00010016,2]
[420854829,1776642634523,-6969.67356997,0.00010016,2]
[420854830,1776642634534,-200.0,0.00010016,2]
[420854831,1776642634544,-161.0,0.00010016,3]
[420854832,1776642634554,-172.0,0.00010016,3]
[420854833,1776642634564,-2101.0,0.00010016,3]
[420854834,1776642634573,-250.0,0.00010027,2]
[420854835,1776642634583,-150.0,0.00010047,2]
[420854836,1776642634593,-2000.0,0.00010055,2]
[420854837,1776642634603,-2622.007,0.00010074,2]
[420854838,1776642634614,-181.537,0.00010074,2]
[420854839,1776642634624,-169.93,0.00010086,2]
[420854840,1776642634636,-200.0,0.00010116,2]
[420854841,1776642634646,-150.0,0.00010152,2]
[420854842,1776642634656,-150.0,0.00010223,2]
[420854843,1776642634665,-150.0,0.00010223,2]
[420854844,1776642634675,-150.0,0.00010223,2]
[420854845,1776642634685,-1680.0,0.00010305,2]
[420854846,1776642634695,-150.0,0.00010311,2]
[420854847,1776642634705,-150.0,0.00010364,2]
[420854848,1776642634715,-1561.0,0.00010372,5]
[420854849,1776642634725,-600.0,0.000104,5]
[420854850,1776642634735,-213.3,0.00010414,2]
[420854851,1776642634744,-213.31194639,0.00010473,2]
[420854852,1776642634755,-1523.03102466,0.00010473,2]
[420854853,1776642634765,-181.08010149,0.00010521,2]
[420854854,1776642634775,-165.67,0.00010541,2]
[420854855,1776642634784,-2144.0,0.00010562,5]
[420854856,1776642634794,-37255.57642084,0.00010562,2]
[420854857,1776642634806,-1254.41808677,0.00010562,2]
[420854858,1776642634817,-1670.4450148,0.00010562,2]
[420854859,1776642634828,-1395.199615,0.00010562,2]
[420854860,1776642634839,-1133.6475,0.00010562,2]
[420854868,1776642638536,-1058.9566945,0.00010562,2]
[420854869,1776642638569,-297.28257251,0.00010562,2]
[420854870,1776642638581,-879.54028418,0.00010562,2]
[420854871,1776642638593,-44589.37099021,0.00010562,2]
[420854872,1776642638605,-9399.4086997,0.00010562,2]
[420854873,1776642638662,-6657.42045116,0.00010562,2]
[420854874,1776642638675,-736.12857669,0.00010562,2]
[420854875,1776642638689,-4074.90097955,0.00010562,2]
[420854876,1776642638772,-591.74330964,0.00010562,2]
[420854877,1776642638785,-559.53366536,0.00010562,2]
[420854878,1776642638798,-1980.58075856,0.00010562,2]
[420854879,1776642638986,-3852.56390105,0.00010562,2]
[420854880,1776642638998,-800.71742749,0.00010562,2]
[420854882,1776642640565,-389.45623264,0.00010562,2]
[420854883,1776642640577,-961.95776251,0.00010562,2]
[420854884,1776642640835,-2819.22291,0.00010562,2]
[420854885,1776642640891,-2414.10485394,0.00010562,2]
[420854886,1776642641000,-2207.26,0.00010562,2]
[420854887,1776642641061,-11254.23974103,0.00010562,2]
[420854888,1776642641073,-1109.5857,0.00010562,2]
[420854909,1776642646068,-1211.13830987,0.00010562,2]
[420854910,1776642646087,-1751.70942853,0.00010562,2]
[420854911,1776642646108,-717.72,0.00010562,2]
[420854912,1776642646667,-45033.0662582,0.00010562,2]
[420854913,1776642646686,-474.332998,0.00010562,2]
[420854914,1776642646753,-14773.499,0.00010562,2]
[420854915,1776642646765,-425.74914432,0.00010562,2]
[420854916,1776642646776,-515.32199994,0.00010562,2]
[420854917,1776642646787,-469.78000001,0.00010562,2]
[420855057,1776643831662,-2035.38,9.314e-05,2]
[420855058,1776643831672,-300.0,9.332e-05,2]
[420855059,1776643831682,-300.0,9.332e-05,2]
[420855060,1776643831692,-500.0,9.333e-05,2]
[420855061,1776643831701,-500.0,9.333e-05,2]
[420855062,1776643831711,-65.92,9.333e-05,2]
[420855063,1776643831727,-246.75777592,9.333e-05,2]
[420855064,1776643831737,-500.0,9.333e-05,2]
[420855065,1776643831746,-166.35933564,9.333e-05,2]
[420855066,1776643831755,-500.0,9.333e-05,2]
[420855067,1776643831765,-500.0,9.333e-05,2]
[420855068,1776643831775,-500.29614553,9.333e-05,2]
[420855069,1776643831785,-500.0,9.333e-05,2]
[420855070,1776643831795,-500.0,9.333e-05,2]
[420855071,1776643831804,-362.00417451,9.333e-05,2]
[420855072,1776643831814,-150.0,9.357e-05,2]
[420855073,1776643831824,-521.57565016,9.358e-05,2]
[420855074,1776643831833,-690.45804203,9.358e-05,2]
[420855075,1776643831843,-391.17663502,9.358e-05,2]
[420855076,1776643831853,-165.88745658,9.358e-05,2]
[420855077,1776643831862,-500.0,9.358e-05,2]
[420855078,1776643831872,-500.0,9.358e-05,2]
[420855079,1776643831882,-500.0,9.358e-05,2]
[420855080,1776643831892,-500.0,9.358e-05,2]
[420855081,1776643831902,-500.0,9.358e-05,2]
[420855082,1776643831911,-500.0,9.358e-05,2]
[420855083,1776643831921,-500.0,9.358e-05,2]
[420855084,1776643831930,-500.0,9.358e-05,2]
[420855085,1776643831939,-500.0,9.358e-05,2]
[420855086,1776643831949,-339.80371969,9.358e-05,2]
[420855087,1776643831962,-160.19628031,9.358e-05,2]
[420855088,1776643831971,-417.49597861,9.358e-05,2]
[420855090,1776643831987,-82.50402139,9.358e-05,2]
[420855091,1776643831997,-500.0,9.358e-05,2]
[420855092,1776643832007,-500.0,9.358e-05,2]
[420855093,1776643832017,-500.0,9.358e-05,2]
[420855094,1776643832026,-500.0,9.358e-05,2]
[420855095,1776643832036,-500.0,9.358e-05,2]
[420855096,1776643832045,-500.0,9.358e-05,2]
[420855097,1776643832055,-500.0,9.358e-05,2]
[420855098,1776643832065,-500.0,9.358e-05,2]
[420855099,1776643832075,-500.0,9.358e-05,2]
[420855100,1776643832085,-522.3607844,9.358e-05,2]
[420855101,1776643832094,-500.0,9.358e-05,2]
[420855103,1776643832104,-500.0,9.358e-05,2]
[420855105,1776643832114,-500.0,9.358e-05,2]
[420855107,1776643832124,-500.0,9.358e-05,2]
[420855108,1776643832134,-500.0,9.358e-05,2]
[420855109,1776643832144,-500.0,9.358e-05,2]
[420855110,1776643832154,-500.0,9.358e-05,2]
[420855111,1776643832164,-500.0,9.358e-05,2]
[420855112,1776643832174,-500.0,9.358e-05,2]
[420855113,1776643832184,-500.0,9.358e-05,2]
[420855114,1776643832194,-500.0,9.358e-05,2]
[420855115,1776643832203,-500.0,9.358e-05,2]
[420855116,1776643832213,-500.0,9.358e-05,2]
[420855117,1776643832223,-500.0,9.358e-05,2]
[420855118,1776643832232,-500.0,9.358e-05,2]
[420855119,1776643832244,-500.0,9.358e-05,2]
[420855120,1776643832253,-500.0,9.358e-05,2]
[420855121,1776643832263,-500.0,9.358e-05,2]
[420855122,1776643832272,-500.0,9.358e-05,2]
[420855123,1776643832282,-500.0,9.358e-05,2]
[420855124,1776643832292,-500.0,9.358e-05,2]
[420855125,1776643832301,-502.23607844,9.358e-05,2]
[420855126,1776643832311,-500.0,9.358e-05,2]
[420855127,1776643832320,-340.76451824,9.358e-05,2]
[420855128,1776643832330,-270.22095473,9.358e-05,2]
[420855129,1776643832340,-500.0,9.358e-05,2]
[420855130,1776643832350,-500.0,9.358e-05,2]
[420855131,1776643832360,-500.0,9.358e-05,2]
[420855132,1776643832370,-500.0,9.358e-05,2]
[420855133,1776643832380,-500.0,9.358e-05,2]
[420855134,1776643832390,-575.22097473,9.358e-05,2]
[420855135,1776643832399,-362.7872756,9.358e-05,2]
[420855136,1776643832408,-138833.00621659,9.359e-05,2]
[420855137,1776643832421,-73051.26236399,9.359e-05,2]
[420855138,1776643832433,-47203.10426152,9.359e-05,2]
[420855139,1776643832444,-931.70372915,9.359e-05,2]
[420855140,1776643832460,-5211.49292933,9.359e-05,2]
[420855554,1776643842310,-151.0,9.356e-05,2]
[420855556,1776643842320,-771.74431981,9.359e-05,2]
[420855558,1776643842331,-770.45357976,9.359e-05,2]
[420855561,1776643842350,-63253.11479985,9.359e-05,2]
[420855563,1776643842360,-180.52766364,9.395e-05,2]
[420855565,1776643842370,-299.99999999,9.395e-05,2]
[420855567,1776643842380,-150.0,9.395e-05,2]
[420855569,1776643842389,-271.3113675,9.395e-05,2]
[420855571,1776643842399,-150.0,9.592e-05,2]
[420855573,1776643842409,-1600.0,9.608e-05,2]
[420855575,1776643842420,-1127.33,9.638e-05,2]
[420855577,1776643842430,-285.50676789,9.67e-05,21]
[420855579,1776643842439,-448.36570538,9.689e-05,2]
[420855581,1776643842449,-150.0,9.72e-05,21]
[420855583,1776643842459,-1281.24,9.725e-05,2]
[420855585,1776643842469,-578.20924308,9.743e-05,2]
[420855587,1776643842478,-500.0,9.743e-05,2]
[420855589,1776643842487,-151.0,9.743e-05,2]
[420855591,1776643842497,-219.23011724,9.743e-05,2]
[420855593,1776643842507,-227.34163157,9.743e-05,2]
[420855594,1776643842517,-235.75327194,9.743e-05,2]
[420855596,1776643842526,-244.476143,9.743e-05,2]
[420855599,1776643842536,-253.52176029,9.743e-05,2]
[420855601,1776643842545,-262.90206542,9.743e-05,2]
[420855603,1776643842556,-272.62944185,9.743e-05,2]
[420855605,1776643842565,-282.71673119,9.743e-05,2]
[420855607,1776643842575,-293.17725025,9.743e-05,2]
[420855610,1776643842585,-304.02480851,9.743e-05,2]
[420855612,1776643842595,-315.27372642,9.743e-05,2]
[420855614,1776643842605,-436.12571566,9.743e-05,2]
[420855616,1776643842615,-1700.0,9.8e-05,3]
[420855618,1776643842625,-1028.61,9.844e-05,2]
[420855620,1776643842634,-500.0,9.881e-05,2]
[420855622,1776643842644,-1000.0,9.881e-05,2]
[420855624,1776643842653,-1000.0,9.881e-05,2]
[420855626,1776643842663,-1006.06962832,9.881e-05,2]
[420855630,1776643842673,-500.0,9.881e-05,2]
[420855634,1776643842682,-180.27,9.897e-05,2]
[420855637,1776643842692,-3500.0,9.9e-05,3]
[420855640,1776643842701,-150.0,9.989e-05,2]
[420855643,1776643842711,-201.95343748,0.0001,2]
[420855646,1776643842720,-201.95343748,0.0001,2]
[420855649,1776643842730,-201.95343748,0.0001,2]
[420855652,1776643842739,-184.98249042,0.0001,2]
[420855654,1776643842749,-5300.0,0.0001,3]
[420855656,1776643842758,-1142.40517874,0.00010015,5]
[420855658,1776643842768,-685.44310725,0.00010015,5]
[420855661,1776643842777,-456.9620715,0.00010015,5]
[420855664,1776643842787,-397.53432266,0.00010022,2]
[420855667,1776643842796,-1976.39652943,0.00010022,2]
[420855670,1776643842806,-4424.25155096,0.00010022,2]
[420855673,1776643842815,-2097.605,0.00010123,2]
[420855676,1776643842825,-181.53775602,0.00010123,2]
[420855679,1776643842836,-250.0,0.00010245,2]
[420855681,1776643842845,-250.0,0.00010245,2]
[420855683,1776643842854,-193.0,0.00010245,2]
[420855685,1776643842863,-420.0,0.00010265,2]
[420855687,1776643842873,-150.0,0.00010289,2]
[420855689,1776643842883,-255.0,0.00010292,2]
[420855690,1776643842893,-5000.0,0.00010362,2]
[420855691,1776643842902,-476.07974948,0.00010373,2]
[420855692,1776643842913,-1488.29397516,0.0001045,2]
[420855693,1776643842923,-1212.95225391,0.00010452,2]
[420855694,1776643842932,-250.0,0.00010456,2]
[420855695,1776643842942,-200.0,0.00010456,2]
[420855696,1776643842951,-151.0,0.00010456,2]
[420855697,1776643842961,-500.0,0.00010456,2]
[420855698,1776643842971,-151.0,0.00010456,2]
[420855699,1776643842981,-500.0,0.00010456,2]
[420855700,1776643842991,-151.0,0.00010456,2]
[420855701,1776643843000,-500.0,0.00010456,2]
[420855702,1776643843010,-151.0,0.00010456,2]
[420855703,1776643843019,-500.0,0.00010456,2]
[420855704,1776643843029,-151.0,0.00010456,2]
[420855705,1776643843039,-500.0,0.00010456,2]
[420855706,1776643843048,-151.0,0.00010456,2]
[420855707,1776643843058,-500.0,0.00010456,2]
[420855708,1776643843067,-151.0,0.00010456,2]
[420855709,1776643843077,-500.0,0.00010456,2]
[420855710,1776643843086,-151.0,0.00010456,2]
[420855711,1776643843096,-500.0,0.00010456,2]
[420855712,1776643843106,-500.0,0.00010456,2]
[420855713,1776643843116,-151.0,0.00010456,2]
[420855714,1776643843125,-500.0,0.00010456,2]
[420855715,1776643843135,-500.0,0.00010456,2]
[420855717,1776643843144,-500.0,0.00010456,2]
[420855718,1776643843154,-395.24826756,0.00010456,2]
[420855720,1776643843164,-151.0,0.00010456,2]
[420855722,1776643843174,-151.0,0.00010456,2]
[420855724,1776643843183,-151.0,0.00010456,2]
[420855726,1776643843192,-151.0,0.00010456,2]
[420855728,1776643843201,-670.58624095,0.00010456,2]
[420855730,1776643843211,-206.37309139,0.00010456,2]
[420855732,1776643843221,-151.0,0.00010456,2]
[420855734,1776643843230,-151.0,0.00010456,2]
[420855735,1776643843240,-151.0,0.00010456,2]
[420855736,1776643843249,-151.0,0.00010456,2]
[420855737,1776643843259,-151.0,0.00010456,2]
[420855738,1776643843268,-173.57756647,0.00010456,2]
[420855739,1776643843278,-1500000.0,0.00010462,2]
[420855740,1776643843287,-161.0,0.0001055,2]
[420855741,1776643843298,-161.0,0.0001055,2]
[420855742,1776643843307,-161.0,0.0001055,2]
[420855743,1776643843316,-2103.0,0.00010554,5]
[420855744,1776643843326,-2024.0,0.00010554,5]
[420855745,1776643843335,-9278.0096682,0.00010555,2]
[420855746,1776643843345,-229000.15461,0.00010555,2]
[420855747,1776643843354,-16062.4666839,0.00010555,2]
[420855748,1776643843364,-6824.9283958,0.00010555,2]
[420855749,1776643843373,-44886.7402817,0.00010555,2]
[420855750,1776643843383,-34307.6983301,0.00010555,2]
[420855751,1776643843392,-151.0,0.00010555,2]
[420855752,1776643843401,-151.0,0.00010555,2]
[420855753,1776643843410,-151.0,0.00010555,2]
[420855755,1776643843420,-151.0,0.00010555,2]
[420855756,1776643843430,-342.72155362,0.00010556,5]
[420855758,1776643843439,-342.72155362,0.00010556,5]
[420855760,1776643843448,-151.0,0.00010559,2]
[420855762,1776643843458,-151.0,0.00010559,2]
[420855764,1776643843467,-152.0,0.00010562,7]
[420855766,1776643843476,-312.08444405,0.00010562,2]
[420855768,1776643843486,-2011.0,0.00010562,3]
[420855770,1776643843495,-163.0,0.00010562,3]
[420855772,1776643843504,-155.0,0.00010562,3]
[420855774,1776643843513,-161.0,0.00010562,3]
[420855776,1776643843523,-152.0,0.00010565,7]
[420855779,1776643843532,-152.0,0.00010565,7]
[420855782,1776643843542,-152.0,0.00010568,7]
[420855785,1776643843551,-152.0,0.00010568,7]
[420855789,1776643843561,-152.0,0.00010568,7]
[420855792,1776643843570,-250.0,0.00010575,2]
[420855795,1776643843581,-250.0,0.00010592,2]
[420855798,1776643843589,-250.0,0.00010592,2]
[420855801,1776643843599,-350.0,0.00010592,2]
[420855803,1776643843608,-151.0,0.00010597,2]
[420855805,1776643843617,-151.0,0.00010597,2]
[420855807,1776643843627,-151.0,0.00010597,2]
[420855809,1776643843636,-155.353,0.00010599,2]
[420855811,1776643843645,-155.0,0.00010599,2]
[420855813,1776643843655,-152.0,0.00010635,7]
[420855815,1776643843665,-152.0,0.00010635,7]
[420855817,1776643843674,-152.0,0.00010646,7]
[420855819,1776643843683,-152.0,0.00010646,7]
[420855821,1776643843692,-152.0,0.00010646,7]
[420855822,1776643843702,-1488.29397514,0.00010692,2]
[420855823,1776643843711,-151.0,0.00010697,2]
[420855824,1776643843721,-179436.1517776,0.000107,2]
[420855825,1776643843731,-150.0,0.000107,2]
[420855826,1776643843740,-796.5387856,0.000107,2]
[420855827,1776643843751,-5433.89463108,0.000107,2]
[420855828,1776643843766,-733.3777153,0.000107,2]
[420855829,1776643844037,-2315.91464154,0.000107,2]
[420855830,1776643844049,-1441.14043361,0.000107,2]
[420855831,1776643844064,-555.0,0.000107,2]
[420855852,1776643845910,-312.08444404,0.00010562,2]
[420855853,1776643845922,-4116.72519591,0.000107,2]
[420855854,1776643845935,-11358.3899454,0.000107,2]
[420855855,1776643846057,-740.13,0.000107,2]
[420855856,1776643846072,-124527.76173519,0.000107,2]
[420855857,1776643846083,-4638.85904344,0.000107,2]
[420855858,1776643846095,-5580.86575464,0.000107,2]
[420855859,1776643846107,-10355.93768118,0.000107,2]
[420855860,1776643846127,-370.53100207,0.000107,2]
[420855870,1776643894381,1678.084,9.072e-05,2]
[420855871,1776643925654,1911.0,9.072e-05,3]
[420855872,1776643935788,155.0,9.072e-05,3]
[420855873,1776643988198,1815.0,9.072e-05,3]
[420855874,1776644013882,155.0,9.072e-05,3]
[420855875,1776644047024,1724.0,9.072e-05,3]
[420855876,1776644053241,156.0,9.072e-05,3]
[420855877,1776644109102,1638.0,9.072e-05,3]
[420855878,1776644116109,166.0,9.072e-05,3]
[420855879,1776644135119,156.0,9.072e-05,3]
[420855880,1776644150791,161.0,9.072e-05,3]
[420855881,1776644167090,1556.0,9.072e-05,3]
[420855882,1776644173265,156.0,9.072e-05,3]
[420855883,1776644223487,299.9002,0.000165,30]
[420855884,1776644225394,1000.0,0.000165,30]
[420855885,1776644226769,1478.0,9.072e-05,3]
[420855886,1776644287812,156.0,9.072e-05,3]
[420855887,1776644290566,150.0,0.000165,30]
[420855888,1776644347058,1405.0,9.072e-05,3]
[420855889,1776644361928,156.0,9.072e-05,3]
[420855891,1776644411074,155.0,9.072e-05,3]
[420855892,1776644411400,1334.0,9.072e-05,3]
[420855893,1776644418467,156.0,9.072e-05,3]
[420855894,1776644452198,161.0,9.072e-05,3]
[420855895,1776644469518,1268.0,9.072e-05,3]
[420855896,1776644496204,2269.242,9.072e-05,2]
[420855897,1776644496237,171.174,9.072e-05,2]
[420855898,1776644527287,1204.0,9.072e-05,3]
[420855899,1776644533487,156.0,9.072e-05,3]
[420855900,1776644584306,1144.0,9.072e-05,3]
[420855901,1776644639502,156.0,9.072e-05,3]
[420855902,1776644646819,1087.0,9.072e-05,3]
[420855903,1776644685572,161.0,9.072e-05,3]
[420855904,1776644705233,1032.0,9.072e-05,3]
[420855905,1776644712766,155.0,9.072e-05,3]
[420855906,1776644715246,500.0,8.405e-05,2]
[420855907,1776644727003,163.19,9.144e-05,2]
[420855908,1776644745327,150.0,8.31e-05,2]
[420855909,1776644745390,150.0,8.31e-05,2]
[420855910,1776644745431,150.0,8.463e-05,2]
[420855911,1776644745484,150.0,8.617e-05,2]
[420855912,1776644745557,150.0,8.771e-05,2]
[420855913,1776644745629,150.0,8.925e-05,2]
[420855914,1776644745695,150.0,9.079e-05,2]
[420855915,1776644747793,150.0,8.31e-05,2]
[420855916,1776644756985,150.0,8.31e-05,2]
[420855917,1776644766566,150.0,8.31e-05,2]
[420855918,1776644766596,150.0,8.31e-05,2]
[420855919,1776644768169,981.0,9.072e-05,3]
[420855920,1776644797249,167.92367659,0.000165,30]
[420855921,1776644812201,197.17,8.912e-05,2]
[420855922,1776644826571,979.0,9.072e-05,3]
[420855923,1776644853811,1300.0,8.8e-05,3]
[420855924,1776644857699,2600.0,8.9e-05,3]
[420855925,1776644858180,3642.84,9e-05,3]
[420855926,1776644858203,257.16,9e-05,3]
[420855927,1776644886576,930.0,9.072e-05,3]
[420855928,1776644892943,154.0,9.072e-05,3]
[420855929,1776644905059,2000.0,8.945e-05,2]
[420855930,1776644926587,260.64,8.896e-05,2]
[420855931,1776644946889,883.0,9.072e-05,3]
[420855932,1776645007163,155.0,9.072e-05,3]
[420855967,1776645033712,-605.6100191,9.157e-05,2]
[420855968,1776645033724,-594.3899809,9.157e-05,2]